bitfinex/quotes_SOLUSD_20250924
["timestamp","ask_amount","ask_price","bid_price","bid_amount"]
[1758695082134,4.77840024,209.28,209.25,5.0]
[1758695082522,5.49840024,209.28,209.25,5.0]
[1758695082921,2.24474422,209.27,209.25,5.0]
[1758695083419,0.72,209.26,209.25,5.0]
[1758695084826,5.49874414,209.26,209.25,5.0]
[1758695085142,26.0,209.31,209.25,5.0]
[1758695085325,0.72,209.27,209.25,5.0]
[1758695088350,4.77874414,209.26,209.25,5.0]
[1758695088523,0.72,209.32,209.25,5.0]
[1758695088728,1.52474422,209.27,209.25,5.0]
[1758695088930,2.24474422,209.29,209.25,5.0]
[1758695089626,2.24474422,209.28,209.25,5.0]
[1758695089827,1.52474422,209.28,209.25,5.0]
[1758695090026,1.52474422,209.29,209.25,5.0]
[1758695090258,2.24474422,209.29,209.25,5.0]
[1758695090745,4.77828746,209.28,209.25,5.0]
[1758695091050,2.22474422,209.27,209.25,5.0]
[1758695091442,0.7,209.26,209.25,5.0]
[1758695093225,5.47874414,209.26,209.25,5.0]
[1758695093937,4.77874414,209.26,209.25,5.0]
[1758695094647,4.77853629,209.27,209.25,5.67]
[1758695095646,2.22474422,209.26,209.16,0.67]
[1758695095832,1.52474422,209.21,209.16,0.67]
[1758695096034,1.52474422,209.21,209.13,1.52474422]
[1758695096348,0.7,209.2,209.14,14.26559401]
[1758695096550,26.0,209.24,209.09,4.78262948]
[1758695096735,1.52474422,209.19,209.11,13.59559401]
[1758695096940,1.52474422,209.19,209.12,0.67]
[1758695097143,4.78057175,209.18,209.12,5.45193421]
[1758695097339,6.30531597,209.18,209.13,14.26559401]
[1758695097540,6.30531597,209.18,209.14,0.67]
[1758695097764,6.30531597,209.18,209.15,0.67]
[1758695097951,6.30531597,209.18,209.16,0.67]
[1758695099049,1.52474422,209.19,209.17,0.67]
[1758695099247,6.30510206,209.19,209.17,0.67]
[1758695099656,6.30510206,209.19,209.13,18.37730867]
[1758695099852,6.30510206,209.19,209.15,0.67]
[1758695100057,6.30510206,209.19,209.16,0.67]
[1758695100240,1.52474422,209.18,209.16,0.67]
[1758695100557,1.52474422,209.17,209.13,0.67]
[1758695100761,1.52474422,209.17,209.14,0.67]
[1758695100949,1.52474422,209.15,209.11,0.67]
[1758695101254,1.52474422,209.13,209.11,0.67]
[1758695101557,1.52474422,209.14,209.11,0.67]
[1758695102154,1.52474422,209.13,209.11,0.67]
[1758695103239,6.30646067,209.13,209.11,0.67]
[1758695103655,1.52474422,209.13,209.11,0.67]
[1758695104657,1.52474422,209.15,209.12,0.67]
[1758695104846,0.7,209.22,209.13,0.67]
[1758695105054,6.30532664,209.18,209.13,0.67]
[1758695105356,6.30532664,209.18,209.13,5.45168277]
[1758695105546,6.30532664,209.18,209.14,0.67]
[1758695105748,6.30532664,209.18,209.15,0.67]
[1758695106957,1.52474422,209.21,209.16,0.67]
[1758695107139,126.54287772,209.23,209.17,13.59559401]
[1758695107340,1.52474422,209.22,209.18,0.67]
[1758695107553,1.52474422,209.24,209.19,0.67]
[1758695107937,1.52474422,209.25,209.19,0.67]
[1758695108151,6.30348836,209.26,209.2,13.59559401]
[1758695108347,37.47790199,209.36,209.21,0.67]
[1758695108553,1.52474422,209.26,209.21,0.67]
[1758695108845,7.00357339,209.26,209.21,0.67]
[1758695109035,1.52474422,209.25,209.21,0.67]
[1758695109247,6.30357339,209.26,209.22,0.67]
[1758695109644,4.77836938,209.28,209.2,18.37565263]
[1758695109845,1.52474422,209.27,209.23,0.67]
[1758695110138,6.3031136,209.28,209.24,0.67]
[1758695110745,1.52474422,209.27,209.24,0.67]
[1758695111650,0.7,209.26,209.2,0.67]
[1758695112749,4.77897252,209.25,209.2,0.67]
[1758695112944,4.77897252,209.25,209.21,0.67]
[1758695113150,4.77877923,209.26,209.22,0.67]
[1758695113364,4.77828746,209.28,209.23,0.67]
[1758695113542,4.77760259,209.31,209.24,15.12033823]
[1758695113740,4.77760259,209.31,209.26,13.59559401]
[1758695113940,4.77760259,209.31,209.27,0.67]
[1758695115268,0.68,209.3,209.24,0.67]
[1758695115951,2.20474422,209.3,209.24,0.67]
[1758695116771,0.68,209.3,209.24,0.67]
[1758695116972,4.77760259,209.31,209.27,13.59559401]
[1758695117174,4.77760259,209.31,209.27,14.26559401]
[1758695118070,4.77737435,209.32,209.27,14.26559401]
[1758695118368,5.45737435,209.32,209.27,14.26559401]
[1758695118572,4.77737435,209.32,209.28,0.67]
[1758695120286,16.72022454,209.33,209.28,0.67]
[1758695120475,17.44022454,209.33,209.28,0.67]
[1758695120675,0.72,209.32,209.28,0.67]
[1758695120976,0.72,209.32,209.25,18.37455359]
[1758695121165,0.72,209.32,209.26,14.29559401]
[1758695122356,4.77760259,209.31,209.27,0.7]
[1758695123163,4.77760259,209.31,209.24,4.77899229]
[1758695123378,4.77760259,209.31,209.27,0.7]
[1758695123575,2.24474422,209.3,209.21,26.0]
[1758695123767,1.52474422,209.26,209.21,26.0]
[1758695123960,2.24474422,209.26,209.21,26.7]
[1758695124360,4.77897252,209.25,209.21,26.7]
[1758695124562,4.77897252,209.25,209.21,0.7]
[1758695127801,4.77874414,209.26,209.22,0.7]
[1758695128087,5.49874414,209.26,209.22,0.7]
[1758695129187,5.49874414,209.26,209.21,13.59559401]
[1758695129393,5.49874414,209.26,209.21,14.29559401]
[1758695130102,0.72,209.29,209.22,3.07992366]
[1758695130299,3.09992366,209.29,209.23,0.7]
[1758695131582,4.77828746,209.28,209.23,0.7]
[1758695131788,5.49828746,209.28,209.24,0.7]
[1758695132283,4.77808258,209.29,209.23,13.59559401]
[1758695132608,4.77808258,209.29,209.25,0.7]
[1758695133601,0.72,209.28,209.21,3.07992366]
[1758695133976,0.72,209.28,209.23,13.59559401]
[1758695134205,4.77808258,209.29,209.21,2.37992366]
[1758695134403,0.72,209.34,209.27,2.37992366]
[1758695134612,0.72,209.34,209.27,3.07992366]
[1758695135590,2.37992366,209.31,209.22,0.7]
[1758695135803,3.09992366,209.3,209.24,26.0]
[1758695136809,0.72,209.3,209.24,31.47905115]
[1758695137000,4.77737721,209.32,209.26,2.37992366]
[1758695137200,4.77737721,209.32,209.27,0.7]
[1758695137375,4.77737721,209.32,209.28,0.7]
[1758695137705,5.49737721,209.32,209.28,0.7]
[1758695138298,0.72,209.31,209.26,2.37992366]
[1758695138490,0.72,209.31,209.26,3.07992366]
[1758695139583,0.72,209.31,209.26,7.85857362]
[1758695139907,0.72,209.31,209.27,0.7]
[1758695142490,4.77716457,209.33,209.28,0.7]
[1758695142701,4.77716457,209.33,209.29,0.7]
[1758695143701,0.72,209.34,209.3,0.7]
[1758695143897,127.26287772,209.36,209.31,0.7]
[1758695144093,126.54287772,209.36,209.32,0.7]
[1758695144809,127.26287772,209.36,209.32,0.7]
[1758695146091,127.26287772,209.36,209.31,4.7775551]
[1758695146297,0.72,209.36,209.31,5.4775551]
[1758695146510,0.72,209.36,209.32,2.37992366]
[1758695147500,5.49647511,209.36,209.32,2.37992366]
[1758695147808,5.49647511,209.36,209.31,0.7]
[1758695148011,5.69619579,209.38,209.32,0.7]
[1758695148201,0.72,209.37,209.3,7.85772424]
[1758695149200,4.97619579,209.38,209.3,7.85772424]
[1758695149405,5.49654256,209.36,209.3,7.85772424]
[1758695150318,0.72,209.35,209.3,2.37992366]
[1758695150513,0.67,209.34,209.29,13.59559401]
[1758695150705,0.67,209.33,209.29,13.59559401]
[1758695150899,0.2,209.38,209.32,39.59559401]
[1758695151203,0.2,209.38,209.35,2.37992366]
[1758695152511,0.2,209.38,209.35,7.1564766]
[1758695152707,0.2,209.38,209.35,7.8664766]
[1758695152894,0.2,209.38,209.35,2.37992366]
[1758695153910,0.2,209.38,209.35,7.86654142]
[1758695154208,0.2,209.38,209.36,13.59559401]
[1758695154717,0.2,209.38,209.35,3.08992366]
[1758695155793,0.2,209.38,209.35,7.15660839]
[1758695155991,0.2,209.38,209.36,0.71]
[1758695156193,0.2,209.38,209.37,0.71]
[1758695156397,0.2,209.38,209.37,16.68551767]
[1758695156596,0.2,209.38,209.35,13.59559401]
[1758695157119,0.2,209.38,209.36,0.71]
[1758695157306,0.2,209.38,209.37,13.59559401]
[1758695157500,0.2,209.38,209.33,42.71992235]
[1758695157501,0.2,209.38,209.35,3.08992366]
[1758695157707,0.2,209.38,209.36,0.71]
[1758695158217,0.2,209.38,209.35,2.37992366]
[1758695158415,0.2,209.38,209.35,3.08992366]
[1758695158606,0.2,209.38,209.35,0.71]
[1758695160197,3.04992366,209.37,209.3,4.77580179]
[1758695160397,4.97610862,209.38,209.12,82.69774122]
[1758695160398,2.37992366,209.33,209.25,2.37992366]
[1758695160723,2.37992366,209.35,209.28,0.71]
[1758695160930,0.67,209.34,209.25,3.08992366]
[1758695161219,0.67,209.33,209.27,13.59559401]
[1758695161422,0.67,209.33,209.28,0.71]
[1758695161594,3.04992366,209.35,209.29,0.71]
[1758695161998,3.04992366,209.35,209.27,13.59559401]
[1758695162204,2.37992366,209.33,209.27,0.71]
[1758695162402,3.04992366,209.32,209.27,26.71]
[1758695162613,0.67,209.31,209.27,26.71]
[1758695162833,3.04992366,209.3,209.24,13.59559401]
[1758695163114,2.37992366,209.28,209.21,14.30559401]
[1758695163327,2.37992366,209.28,209.22,14.30559401]
[1758695163499,2.37992366,209.28,209.23,0.71]
[1758695163702,2.37992366,209.28,209.24,0.71]
[1758695164932,7.1582312,209.28,209.24,0.71]
[1758695165297,11.94387646,209.32,209.25,0.71]
[1758695165298,2.37992366,209.31,209.25,0.71]
[1758695165503,5.44749445,209.32,209.25,3.08992366]
[1758695165698,5.44749445,209.32,209.26,0.71]
[1758695167507,2.37992366,209.31,209.24,13.59559401]
[1758695167704,0.67,209.3,209.24,13.59559401]
[1758695168106,0.67,209.3,209.24,14.30559401]
[1758695169134,5.44785957,209.3,209.24,14.30559401]
[1758695169322,5.44785957,209.3,209.24,13.59559401]
[1758695169323,0.67,209.29,209.24,13.59559401]
[1758695169525,0.67,209.28,209.22,0.71]
[1758695169737,0.67,209.28,209.23,13.59559401]
[1758695170046,0.67,209.28,209.23,14.30559401]
[1758695172531,4.77851579,209.27,209.24,0.71]
[1758695172719,29.20215893,209.36,209.26,13.59559401]
[1758695172919,0.67,209.33,209.26,14.30559401]
[1758695173137,2.37992366,209.33,209.26,0.71]
[1758695173332,2.37992366,209.31,209.26,0.71]
[1758695173544,0.67,209.3,209.26,0.71]
[1758695173936,0.67,209.3,209.24,16.63551767]
[1758695174323,3.07992366,209.29,209.24,0.66]
[1758695174616,4.77828746,209.28,209.24,0.66]
[1758695175750,17.42400611,209.28,209.21,2.37992366]
[1758695175931,17.42400611,209.28,209.22,0.66]
[1758695178547,4.77828746,209.28,209.23,13.59559401]
[1758695178759,5.47828746,209.28,209.24,0.66]
[1758695179354,2.37992366,209.25,209.18,0.66]
[1758695179653,4.77828746,209.28,209.22,13.59559401]
[1758695179855,4.77828746,209.28,209.23,2.37992366]
[1758695180031,4.77828746,209.28,209.24,0.66]
[1758695180228,5.47828746,209.28,209.24,0.66]
[1758695180431,5.47828746,209.28,209.23,2.37992366]
[1758695180740,5.47828746,209.28,209.23,3.08992366]
[1758695180943,5.47828746,209.28,209.24,0.71]
[1758695182158,4.77828746,209.28,209.22,13.59559401]
[1758695182363,5.42828746,209.28,209.23,0.71]
[1758695182564,4.77828746,209.28,209.24,0.71]
[1758695182729,4.77874414,209.26,209.21,3.08992366]
[1758695182933,0.65,209.27,209.22,0.71]
[1758695182934,5.42853295,209.27,209.22,0.71]
[1758695183133,4.77853295,209.27,209.23,0.71]
[1758695183542,4.77853295,209.27,209.24,0.71]
[1758695183948,4.77828746,209.28,209.24,0.71]
[1758695184256,4.77802501,209.3,209.25,16.68551767]
[1758695184435,4.77802501,209.3,209.26,0.71]
[1758695184830,5.42802501,209.3,209.26,0.71]
[1758695185052,5.42802501,209.3,209.25,15.97551767]
[1758695185235,0.65,209.3,209.25,16.68551767]
[1758695185432,2.37992366,209.31,209.25,14.30559401]
[1758695185638,0.65,209.29,209.24,13.59559401]
[1758695185937,2.37992366,209.31,209.24,14.30559401]
[1758695186142,3.02992366,209.31,209.25,0.71]
[1758695186341,0.65,209.3,209.25,0.71]
[1758695186550,0.65,209.29,209.25,0.71]
[1758695187053,2.37992366,209.31,209.25,0.71]
[1758695187269,4.77783086,209.3,209.25,0.71]
[1758695187638,5.42783086,209.3,209.25,0.71]
[1758695188065,0.65,209.36,209.27,13.59559401]
[1758695188234,0.65,209.4,209.34,2.37992366]
[1758695188434,12.59365941,209.4,209.34,2.37992366]
[1758695188734,0.65,209.4,209.35,2.23091279]
[1758695189334,4.77580079,209.39,209.35,2.23091279]
[1758695189541,4.77580079,209.39,209.35,1.52091279]
[1758695190233,4.77580079,209.39,209.35,2.23091279]
[1758695191358,4.77553377,209.41,209.36,0.71]
[1758695191571,0.2,209.43,209.37,15.1165068]
[1758695191853,4.97490951,209.43,209.37,14.30559401]
[1758695192556,0.2,209.43,209.37,15.8265068]
[1758695192946,0.2,209.43,209.37,20.80141631]
[1758695193659,0.2,209.43,209.37,25.57764977]
[1758695199664,0.85,209.43,209.37,25.57764977]
[1758695200966,0.2,209.43,209.37,25.57764977]
[1758695202748,0.2,209.43,209.37,20.60274026]
[1758695204074,0.85,209.43,209.37,20.60274026]
[1758695204457,0.2,209.43,209.37,20.60274026]
[1758695205252,0.2,209.43,209.37,46.60274026]
[1758695205445,0.2,209.43,209.37,20.60274026]
[1758695205848,0.2,209.43,209.37,19.08182747]
[1758695206070,0.85,209.43,209.37,20.60274026]
[1758695206450,0.85,209.43,209.37,46.60274026]
[1758695206655,0.85,209.43,209.37,20.60274026]
[1758695207460,0.85,209.43,209.37,46.60274026]
[1758695207661,0.85,209.43,209.37,20.60274026]
[1758695208272,0.2,209.43,209.37,46.60274026]
[1758695208484,0.65,209.41,209.37,15.1165068]
[1758695209084,4.77532273,209.41,209.34,0.71]
[1758695209264,4.77532273,209.41,209.37,13.59559401]
[1758695209754,0.85,209.38,209.37,13.59559401]
[1758695210656,0.85,209.38,209.34,26.0]
[1758695210862,0.71,209.37,209.35,39.59559401]
[1758695211193,0.71,209.36,209.35,39.59559401]
[1758695211652,0.71,209.36,209.32,27.52091279]
[1758695211854,0.71,209.35,209.31,13.59559401]
[1758695212074,0.71,209.34,209.31,13.59559401]
[1758695212351,0.71,209.33,209.27,13.59559401]
[1758695212566,0.71,209.32,209.27,1.52091279]
[1758695212772,0.71,209.31,209.28,13.59559401]
[1758695212975,0.71,209.31,209.3,39.59559401]
[1758695213479,0.71,209.31,209.3,13.59559401]
[1758695216781,0.2,209.38,209.31,13.59559401]
[1758695216988,0.2,209.38,209.34,13.59559401]
[1758695217483,0.91,209.38,209.34,13.59559401]
[1758695219189,0.91,209.38,209.34,18.37233293]
[1758695219484,0.71,209.37,209.33,15.1165068]
[1758695219694,0.71,209.37,209.33,13.59559401]
[1758695219886,0.71,209.36,209.34,13.59559401]
[1758695220179,0.71,209.35,209.34,13.59559401]
[1758695221380,0.71,209.37,209.34,13.59559401]
[1758695221762,0.91,209.38,209.34,13.59559401]
[1758695222773,0.91,209.38,209.34,18.37250372]
[1758695222984,0.2,209.38,209.34,20.59341651]
[1758695223185,0.2,209.38,209.36,13.59559401]
[1758695224367,0.2,209.38,209.37,15.1165068]
[1758695224574,0.2,209.38,209.37,15.8165068]
[1758695224890,0.2,209.38,209.37,20.59274026]
[1758695228969,0.2,209.38,209.37,19.07182747]
[1758695231271,0.2,209.38,209.37,18.37182747]
[1758695234167,0.2,209.38,209.37,19.09182747]
[1758695235202,0.2,209.38,209.37,18.37182747]
[1758695236497,0.2,209.38,209.37,44.37182747]
[1758695236895,0.2,209.38,209.37,45.09182747]
[1758695237274,0.2,209.38,209.37,44.37182747]
[1758695237471,0.2,209.38,209.37,39.59559401]
[1758695237676,0.91,209.38,209.37,39.59559401]
[1758695240401,0.2,209.38,209.37,39.59559401]
[1758695241392,0.2,209.38,209.37,44.37182747]
[1758695241693,0.2,209.38,209.37,45.08182747]
[1758695242281,0.2,209.38,209.37,19.08182747]
[1758695243704,1e-08,209.38,209.37,45.08182747]
[1758695244011,1e-08,209.38,209.37,19.55945081]
[1758695244183,1e-08,209.38,209.37,21.47337219]
[1758695244811,1e-08,209.38,209.37,20.99574885]
[1758695244988,1e-08,209.38,209.37,19.08182747]
[1758695245386,1e-08,209.38,209.37,20.99584044]
[1758695245582,1e-08,209.38,209.37,45.08182747]
[1758695245988,1e-08,209.38,209.37,46.60274026]
[1758695246281,1e-08,209.38,209.37,20.60274026]
[1758695246806,1e-08,209.38,209.37,46.60274026]
[1758695247010,1e-08,209.38,209.37,20.60274026]
[1758695247306,1e-08,209.38,209.37,46.60274026]
[1758695247505,1e-08,209.38,209.37,20.60274026]
[1758695247895,1e-08,209.38,209.37,46.60274026]
[1758695248211,1e-08,209.38,209.37,20.60274026]
[1758695248603,1e-08,209.38,209.37,47.45723522]
[1758695248907,1e-08,209.38,209.37,21.45723522]
[1758695249890,1e-08,209.38,209.37,47.45723522]
[1758695250102,1e-08,209.38,209.37,21.45723522]
[1758695250710,1e-08,209.38,209.37,47.45723522]
[1758695250914,1e-08,209.38,209.37,21.45723522]
[1758695251293,1e-08,209.38,209.37,47.45723522]
[1758695251803,1e-08,209.38,209.37,21.45723522]
[1758695254705,1e-08,209.38,209.37,23.37115661]
[1758695255521,1e-08,209.38,209.37,37.74115661]
[1758695261705,1e-08,209.38,209.37,35.82723522]
[1758695262210,1e-08,209.38,209.37,20.74723522]
[1758695262708,0.68000001,209.38,209.37,46.74723522]
[1758695262939,0.68000001,209.38,209.37,20.74723522]
[1758695263126,0.68000001,209.38,209.37,46.74723522]
[1758695263331,0.68000001,209.38,209.37,20.74723522]
[1758695263629,0.68000001,209.38,209.37,46.74723522]
[1758695263825,0.68000001,209.38,209.37,20.74723522]
[1758695263826,1e-08,209.38,209.37,20.74723522]
[1758695264615,1e-08,209.38,209.37,46.74723522]
[1758695265006,0.68000001,209.38,209.37,18.37182747]
[1758695265231,0.68000001,209.38,209.37,20.74723522]
[1758695266425,1e-08,209.38,209.37,46.74723522]
[1758695266616,0.68000001,209.38,209.37,20.74723522]
[1758695266818,0.68000001,209.38,209.37,18.37182747]
[1758695267222,0.68000001,209.38,209.37,44.37182747]
[1758695267533,0.68000001,209.38,209.37,18.37182747]
[1758695267830,0.68000001,209.38,209.37,39.59559401]
[1758695268218,0.68000001,209.38,209.37,44.37182747]
[1758695269230,0.68000001,209.38,209.37,39.59559401]
[1758695269611,1e-08,209.38,209.37,47.45723522]
[1758695269820,1e-08,209.38,209.37,18.37182747]
[1758695270138,0.68000001,209.38,209.37,46.74723522]
[1758695270314,1e-08,209.38,209.37,46.74723522]
[1758695270716,0.72000001,209.38,209.37,46.74723522]
[1758695271710,1e-08,209.38,209.37,46.74723522]
[1758695274545,1e-08,209.38,209.37,44.37182747]
[1758695274723,0.72000001,209.38,209.37,39.59559401]
[1758695275449,0.72000001,209.38,209.37,26.0]
[1758695276335,0.72000001,209.38,209.34,18.37250668]
[1758695276539,0.72,209.37,209.34,20.74791443]
[1758695276835,0.72,209.36,209.34,20.74791443]
[1758695277161,0.72,209.35,209.34,13.59559401]
[1758695277463,0.72,209.35,209.31,15.97100176]
[1758695277629,0.72,209.34,209.31,18.37314867]
[1758695277964,7.15142583,209.38,209.26,33.54053197]
[1758695277965,4.77601808,209.38,209.28,2.37540775]
[1758695278257,2.37540775,209.35,209.29,39.59559401]
[1758695278468,0.72,209.34,209.29,44.37355056]
[1758695278642,0.72,209.33,209.29,44.37355056]
[1758695278944,0.72,209.32,209.29,39.59559401]
[1758695279148,0.72,209.31,209.29,39.59559401]
[1758695279340,0.72,209.3,209.28,13.59559401]
[1758695279537,0.72,209.29,209.28,13.59559401]
[1758695281558,2.37540775,209.32,209.27,13.59559401]
[1758695281761,0.72,209.29,209.27,13.59559401]
[1758695281930,0.72,209.28,209.27,13.59559401]
[1758695286149,2.37540775,209.31,209.27,13.59559401]
[1758695286356,0.72,209.3,209.27,13.59559401]
[1758695286539,0.72,209.29,209.27,13.59559401]
[1758695287534,0.72,209.29,209.27,18.37404752]
[1758695287964,0.72,209.29,209.27,13.59559401]
[1758695288165,0.72,209.28,209.27,13.59559401]
[1758695288839,2.37540775,209.3,209.27,13.59559401]
[1758695288840,3.09540775,209.3,209.27,13.59559401]
[1758695289040,0.72,209.29,209.27,13.59559401]
[1758695289454,0.72,209.33,209.29,13.59559401]
[1758695289656,0.72,209.33,209.29,14.31559401]
[1758695289865,0.72,209.32,209.28,13.59559401]
[1758695290071,2.37540775,209.34,209.28,13.59559401]
[1758695290384,0.72,209.31,209.28,13.59559401]
[1758695291786,0.72,209.31,209.28,18.37372275]
[1758695292277,3.09540775,209.34,209.29,0.72]
[1758695292777,0.72,209.33,209.29,0.72]
[1758695293453,7.15218997,209.35,209.28,18.37372275]
[1758695293649,0.69,209.32,209.28,18.37372275]
[1758695293866,2.37540775,209.34,209.28,18.37372275]
[1758695293867,0.69,209.31,209.28,18.37372275]
[1758695294681,2.37540775,209.33,209.28,18.37372275]
[1758695294888,0.69,209.32,209.28,18.37372275]
[1758695295354,0.69,209.32,209.28,19.09372275]
[1758695295985,0.69,209.36,209.29,16.69100176]
[1758695296165,0.69,209.36,209.32,13.59559401]
[1758695296371,0.69000001,209.38,209.34,13.59559401]
[1758695296584,1e-08,209.38,209.34,15.97100176]
[1758695296771,0.69000001,209.38,209.34,13.59559401]
[1758695296971,1e-08,209.38,209.34,13.59559401]
[1758695297176,0.69,209.37,209.29,26.0]
[1758695297376,0.69,209.36,209.3,13.59559401]
[1758695297570,0.69,209.35,209.3,13.59559401]
[1758695297762,0.69,209.34,209.3,13.59559401]
[1758695297987,0.69,209.33,209.3,13.59559401]
[1758695299881,5.46672242,209.35,209.3,13.59559401]
[1758695300063,5.46672242,209.35,209.3,14.31559401]
[1758695300464,2.37540775,209.37,209.32,13.59559401]
[1758695300660,0.66,209.36,209.32,0.7]
[1758695301274,0.66,209.36,209.33,13.59559401]
[1758695303578,7.15166946,209.37,209.31,4.77758941]
[1758695303891,0.66,209.35,209.3,13.59559401]
[1758695304084,0.66,209.35,209.3,18.37339083]
[1758695304298,0.66,209.35,209.3,19.07339083]
[1758695304488,0.66,209.35,209.3,18.37339083]
[1758695304690,4.77623525,209.37,209.31,0.7]
[1758695304879,2.37540775,209.36,209.3,18.37339083]
[1758695305079,0.66,209.35,209.3,18.37339083]
[1758695305279,0.66,209.35,209.3,19.07339083]
[1758695305692,0.66,209.35,209.3,18.37339083]
[1758695305889,7.15195626,209.36,209.31,0.7]
[1758695306088,7.81195626,209.36,209.31,0.7]
[1758695307095,7.81195626,209.36,209.3,18.37339083]
[1758695307294,7.81195626,209.36,209.33,13.59559401]
[1758695307905,7.81195626,209.36,209.3,18.37339083]
[1758695308092,7.81195626,209.36,209.3,19.07339083]
[1758695308686,7.81219222,209.35,209.3,19.07339083]
[1758695308898,0.66,209.34,209.3,19.07339083]
[1758695309399,0.66,209.34,209.3,0.7]
[1758695309584,0.66,209.34,209.31,13.59559401]
[1758695309985,0.66,209.34,209.3,0.7]
[1758695310207,0.66,209.34,209.31,13.59559401]
[1758695310700,6.29854139,209.35,209.31,13.59559401]
[1758695310899,6.95854139,209.35,209.31,0.7]
[1758695311413,5.43681096,209.35,209.31,0.7]
[1758695311613,4.77681096,209.35,209.31,0.7]
[1758695312113,5.43681096,209.35,209.31,0.7]
[1758695313596,0.66,209.35,209.31,0.7]
[1758695314510,2.18173043,209.35,209.31,0.7]
[1758695315011,1e-08,209.38,209.33,13.59559401]
[1758695315395,2.18173044,209.38,209.33,14.29559401]
[1758695315596,2.18173044,209.38,209.34,0.7]
[1758695315799,1e-08,209.38,209.35,14.29559401]
[1758695316010,1e-08,209.38,209.37,13.59559401]
[1758695316710,1e-08,209.38,209.37,14.29559401]
[1758695318682,1e-08,209.38,209.37,19.07182747]
[1758695319213,1e-08,209.38,209.37,14.29559401]
[1758695319885,1e-08,209.38,209.37,19.07182747]
[1758695320307,1e-08,209.38,209.37,14.29559401]
[1758695320507,1e-08,209.38,209.35,4.77660968]
[1758695320709,1e-08,209.38,209.35,5.47660968]
[1758695321006,1e-08,209.38,209.37,13.59559401]
[1758695324088,0.66000001,209.38,209.34,4.77689568]
[1758695324386,1e-08,209.38,209.35,14.29559401]
[1758695324589,1e-08,209.38,209.35,15.81732444]
[1758695325607,1e-08,209.38,209.35,20.59394826]
[1758695325801,1e-08,209.38,209.36,0.7]
[1758695326189,1e-08,209.38,209.36,2.22173043]
[1758695326906,1e-08,209.38,209.37,14.29559401]
[1758695329716,1e-08,209.38,209.37,15.81732444]
[1758695329917,1e-08,209.38,209.37,20.5935579]
[1758695333622,1e-08,209.38,209.37,19.07182747]
[1758695333921,1e-08,209.38,209.37,18.37182747]
[1758695335429,1e-08,209.38,209.37,19.02182747]
[1758695341423,1e-08,209.38,209.37,20.5435579]
[1758695342006,1e-08,209.38,209.37,18.37182747]
[1758695342201,0.68000001,209.38,209.37,18.37182747]
[1758695342617,1e-08,209.38,209.37,13.59559401]
[1758695342929,0.68000001,209.38,209.37,13.59559401]
[1758695344119,0.68000001,209.38,209.36,1.52173043]
[1758695344319,0.68,209.37,209.36,15.11732444]
[1758695344624,0.68,209.37,209.36,13.59559401]
[1758695345832,0.68,209.37,209.33,13.59559401]
[1758695346128,0.68,209.36,209.3,13.59559401]
[1758695346430,0.68,209.35,209.3,39.59559401]
[1758695346618,0.68,209.35,209.3,13.59559401]
[1758695346814,0.68,209.34,209.28,13.59559401]
[1758695347047,0.68,209.33,209.28,13.59559401]
[1758695347210,0.68,209.32,209.28,13.59559401]
[1758695347410,0.68,209.31,209.28,13.59559401]
[1758695347935,0.68,209.3,209.28,13.59559401]
[1758695348430,4.77751197,209.32,209.28,13.59559401]
[1758695348620,0.68,209.3,209.28,13.59559401]
[1758695348819,0.68,209.29,209.27,39.59559401]
[1758695349131,0.68,209.29,209.27,13.59559401]
[1758695349732,2.20173043,209.28,209.2,0.65]
[1758695350033,2.20173043,209.28,209.23,15.11732444]
[1758695350034,0.68,209.28,209.23,15.11732444]
[1758695350243,0.68,209.31,209.26,13.59559401]
[1758695350448,11.94195583,209.35,209.26,13.59559401]